[Event "*** MasterClass Titled Tuesday Blitz"]
[Site "Chess.com"]
[Date "2017.12.05"]
[Round "1"]
[White "BoilingFrog"]
[Black "penguingm1"]
[Result "0-1"]
[WhiteElo "2235"]
[BlackElo "2626"]
[TimeControl "180+2"]
[EndTime "14:24:41 PST"]
[Termination "penguingm1 won by checkmate"]

1. e4 {[%clk 0:02:59.5]} 1... e5 {[%clk 0:02:36.9]} 2. Nf3 {[%clk 0:02:59.9]}
2... Nc6 {[%clk 0:02:11.5]} 3. Bc4 {[%clk 0:03:00.3]} 3... Bc5 {[%clk 0:02:05]}
4. b4 {[%clk 0:03:00.8]} 4... Bxb4 {[%clk 0:02:03.9]} 5. c3 {[%clk 0:03:02.2]}
5... Be7 {[%clk 0:02:05.4]} 6. d4 {[%clk 0:03:02.3]} 6... Na5 {[%clk 0:02:06]}
7. Bd3 {[%clk 0:03:03.6]} 7... d6 {[%clk 0:02:05.6]} 8. dxe5 {[%clk 0:03:04.7]}
8... dxe5 {[%clk 0:02:04.7]} 9. Nxe5 {[%clk 0:03:05.8]} 9... Nf6 {[%clk
0:01:59.7]} 10. O-O {[%clk 0:03:06.2]} 10... O-O {[%clk 0:02:00.8]} 11. f4
{[%clk 0:03:05.9]} 11... Re8 {[%clk 0:01:56.8]} 12. Nd2 {[%clk 0:02:58.5]} 12...
Bc5+ {[%clk 0:01:56.7]} 13. Kh1 {[%clk 0:02:57.7]} 13... Ng4 {[%clk 0:01:53.6]}
14. Nxg4 {[%clk 0:02:34]} 14... Bxg4 {[%clk 0:01:35.6]} 15. Qc2 {[%clk
0:02:30.5]} 15... Qh4 {[%clk 0:01:28.3]} 16. Nf3 {[%clk 0:02:01.4]} 16... Qh5
{[%clk 0:01:28.4]} 17. e5 {[%clk 0:01:46.3]} 17... Rad8 {[%clk 0:01:26.1]} 18.
Be4 {[%clk 0:01:41.7]} 18... Nc6 {[%clk 0:01:25.2]} 19. Rb1 {[%clk 0:01:41.6]}
19... Bb6 {[%clk 0:01:26.2]} 20. a4 {[%clk 0:01:38.3]} 20... Ne7 {[%clk
0:01:25.5]} 21. a5 {[%clk 0:00:56]} 21... Bxa5 {[%clk 0:01:05.4]} 22. Be3 {[%clk
0:00:30.2]} 22... Bb6 {[%clk 0:01:04.8]} 23. Nd4 {[%clk 0:00:21.1]} 23... Nd5
{[%clk 0:00:59.1]} 24. Bd2 {[%clk 0:00:19.6]} 24... Nxc3 {[%clk 0:00:43.7]} 25.
Bxc3 {[%clk 0:00:19.2]} 25... Bxd4 {[%clk 0:00:44.7]} 26. Bxd4 {[%clk
0:00:20.5]} 26... Rxd4 {[%clk 0:00:46.3]} 27. Rxb7 {[%clk 0:00:20.9]} 27... a5
{[%clk 0:00:37.6]} 28. Rxc7 {[%clk 0:00:20]} 28... Red8 {[%clk 0:00:38.4]} 29.
h3 {[%clk 0:00:15]} 29... Rd2 {[%clk 0:00:37.9]} 30. Qc3 {[%clk 0:00:12.6]}
30... h6 {[%clk 0:00:33.6]} 31. Qg3 {[%clk 0:00:12]} 31... Bc8 {[%clk
0:00:31.7]} 32. f5 {[%clk 0:00:12.8]} 32... Qg5 {[%clk 0:00:16.9]} 33. Qxg5
{[%clk 0:00:10.7]} 33... hxg5 {[%clk 0:00:18.8]} 34. e6 {[%clk 0:00:07.4]} 34...
fxe6 {[%clk 0:00:18.4]} 35. fxe6 {[%clk 0:00:09.3]} 35... Bxe6 {[%clk
0:00:19.5]} 36. Bg6 {[%clk 0:00:09.3]} 36... R2d7 {[%clk 0:00:15.6]} 37. Rc5
{[%clk 0:00:08.9]} 37... Ra7 {[%clk 0:00:14.5]} 38. Re5 {[%clk 0:00:08.4]} 38...
Bc4 {[%clk 0:00:14.5]} 39. Rc1 {[%clk 0:00:09.5]} 39... Bb3 {[%clk 0:00:15.4]}
40. Rxg5 {[%clk 0:00:10.7]} 40... a4 {[%clk 0:00:16.6]} 41. Rh5 {[%clk 0:00:12]}
41... a3 {[%clk 0:00:17]} 42. Rf1 {[%clk 0:00:10.8]} 42... Bf7 {[%clk
0:00:13.4]} 43. Bxf7+ {[%clk 0:00:09]} 43... Rxf7 {[%clk 0:00:13.9]} 44. Rxf7
{[%clk 0:00:10]} 44... Kxf7 {[%clk 0:00:13.3]} 45. Ra5 {[%clk 0:00:11.2]} 45...
Rd1+ {[%clk 0:00:14.5]} 46. Kh2 {[%clk 0:00:12.6]} 46... Ra1 {[%clk 0:00:16.4]}
47. Ra4 {[%clk 0:00:13.8]} 47... Ke6 {[%clk 0:00:17.7]} 48. Kg3 {[%clk
0:00:15.1]} 48... Kd5 {[%clk 0:00:19]} 49. Ra5+ {[%clk 0:00:16.7]} 49... Kc4
{[%clk 0:00:20.4]} 50. h4 {[%clk 0:00:18.3]} 50... Kb3 {[%clk 0:00:21.3]} 51.
Rb5+ {[%clk 0:00:19.8]} 51... Ka4 {[%clk 0:00:22.4]} 52. Rb7 {[%clk 0:00:20.6]}
52... Rc1 {[%clk 0:00:20.5]} 53. Rxg7 {[%clk 0:00:20.8]} 53... Rc5 {[%clk
0:00:22.1]} 54. Re7 {[%clk 0:00:21.8]} 54... a2 {[%clk 0:00:21.4]} 55. Re1
{[%clk 0:00:22.8]} 55... Kb3 {[%clk 0:00:23]} 56. Kg4 {[%clk 0:00:20.8]} 56...
Ra5 {[%clk 0:00:24.3]} 57. Ra1 {[%clk 0:00:21.7]} 57... Kb2 {[%clk 0:00:25.8]}
58. Rxa2+ {[%clk 0:00:23.2]} 58... Rxa2 {[%clk 0:00:27.2]} 59. h5 {[%clk
0:00:24.8]} 59... Kc3 {[%clk 0:00:28.8]} 60. g3 {[%clk 0:00:26.1]} 60... Kd4
{[%clk 0:00:30.1]} 61. Kf5 {[%clk 0:00:26.1]} 61... Ra5+ {[%clk 0:00:29.7]} 62.
Kg6 {[%clk 0:00:27]} 62... Ke5 {[%clk 0:00:31.3]} 63. h6 {[%clk 0:00:28.4]}
63... Ra6+ {[%clk 0:00:32.6]} 64. Kg7 {[%clk 0:00:29.5]} 64... Kf5 {[%clk
0:00:31]} 65. h7 {[%clk 0:00:31]} 65... Ra7+ {[%clk 0:00:32.2]} 66. Kg8 {[%clk
0:00:31.2]} 66... Kg6 {[%clk 0:00:33.5]} 67. h8=Q {[%clk 0:00:31.6]} 67... Ra8#
{[%clk 0:00:34.3]} 0-1

[Event "*** MasterClass Titled Tuesday Blitz"]
[Site "Chess.com"]
[Date "2017.12.05"]
[Round "1"]
[White "activity5"]
[Black "likantrophuss"]
[Result "0-1"]
[WhiteElo "1522"]
[BlackElo "2462"]
[TimeControl "180+2"]
[EndTime "14:24:57 PST"]
[Termination "likantrophuss won by checkmate"]

1. d4 {[%clk 0:03:00.1]} 1... Nf6 {[%clk 0:02:42.1]} 2. Nf3 {[%clk 0:03:00.5]}
2... g6 {[%clk 0:02:43.1]} 3. Bg5 {[%clk 0:03:00]} 3... Bg7 {[%clk 0:02:44.1]}
4. e3 {[%clk 0:03:01.3]} 4... O-O {[%clk 0:02:44.8]} 5. Be2 {[%clk 0:03:02.6]}
5... c5 {[%clk 0:02:45.3]} 6. c3 {[%clk 0:03:03.2]} 6... b6 {[%clk 0:02:45.7]}
7. Nbd2 {[%clk 0:03:03.8]} 7... Bb7 {[%clk 0:02:46.7]} 8. a4 {[%clk 0:03:02]}
8... a6 {[%clk 0:02:45.4]} 9. Qc2 {[%clk 0:02:59.9]} 9... d6 {[%clk 0:02:46.4]}
10. O-O {[%clk 0:02:58.4]} 10... Nbd7 {[%clk 0:02:46.8]} 11. dxc5 {[%clk
0:02:52.8]} 11... bxc5 {[%clk 0:02:45.3]} 12. Rfd1 {[%clk 0:02:51.5]} 12... h6
{[%clk 0:02:41.5]} 13. Bxf6 {[%clk 0:02:51.9]} 13... Nxf6 {[%clk 0:02:41.6]} 14.
Ne1 {[%clk 0:02:49.6]} 14... Qc8 {[%clk 0:02:35.4]} 15. Bf3 {[%clk 0:02:50.1]}
15... Bxf3 {[%clk 0:02:33.8]} 16. Ndxf3 {[%clk 0:02:49.2]} 16... Qb7 {[%clk
0:02:35]} 17. Rab1 {[%clk 0:02:20.2]} 17... Rfc8 {[%clk 0:02:28]} 18. Nd2 {[%clk
0:02:20.1]} 18... Rab8 {[%clk 0:02:23.1]} 19. Nef3 {[%clk 0:02:20]} 19... Nd5
{[%clk 0:02:05.9]} 20. Ne4 {[%clk 0:02:09.3]} 20... Nb6 {[%clk 0:02:02.9]} 21.
b3 {[%clk 0:02:06.3]} 21... Qc6 {[%clk 0:02:01.8]} 22. c4 {[%clk 0:01:58.3]}
22... Nd7 {[%clk 0:01:56.2]} 23. Nc3 {[%clk 0:01:57.4]} 23... e6 {[%clk
0:01:55.1]} 24. Ne4 {[%clk 0:01:53.8]} 24... Bf8 {[%clk 0:01:53]} 25. h3 {[%clk
0:01:50.2]} 25... Rb4 {[%clk 0:01:43.7]} 26. Nfd2 {[%clk 0:01:42.5]} 26... d5
{[%clk 0:01:41.5]} 27. Nc3 {[%clk 0:01:19.3]} 27... d4 {[%clk 0:01:30.6]} 28.
exd4 {[%clk 0:01:18.9]} 28... cxd4 {[%clk 0:01:32]} 29. Na2 {[%clk 0:01:10.8]}
29... Rb7 {[%clk 0:01:31.7]} 30. Ne4 {[%clk 0:01:02.5]} 30... f5 {[%clk
0:01:27.9]} 31. Ng3 {[%clk 0:00:58.5]} 31... Bg7 {[%clk 0:01:28.3]} 32. Qd3
{[%clk 0:00:37.7]} 32... e5 {[%clk 0:01:27.3]} 33. f3 {[%clk 0:00:36]} 33... Nc5
{[%clk 0:01:27.7]} 34. Qd2 {[%clk 0:00:33.5]} 34... Nxb3 {[%clk 0:01:26.2]} 35.
Qc2 {[%clk 0:00:26.2]} 35... Qxc4 {[%clk 0:01:24.8]} 36. Qxc4+ {[%clk
0:00:24.5]} 36... Rxc4 {[%clk 0:01:25.8]} 37. Nc1 {[%clk 0:00:25.3]} 37... Rcb4
{[%clk 0:01:24.1]} 38. Nxb3 {[%clk 0:00:26.3]} 38... Rxb3 {[%clk 0:01:24.2]} 39.
Rxb3 {[%clk 0:00:27.5]} 39... Rxb3 {[%clk 0:01:24.3]} 40. Ne2 {[%clk 0:00:27]}
40... g5 {[%clk 0:01:21.6]} 41. h4 {[%clk 0:00:26.9]} 41... Rb4 {[%clk
0:01:09.6]} 42. hxg5 {[%clk 0:00:27.4]} 42... hxg5 {[%clk 0:01:10.9]} 43. g4
{[%clk 0:00:23.7]} 43... fxg4 {[%clk 0:01:10.4]} 44. fxg4 {[%clk 0:00:24.2]}
44... e4 {[%clk 0:01:11.5]} 45. Ng3 {[%clk 0:00:22]} 45... d3 {[%clk 0:01:12.2]}
46. Nxe4 {[%clk 0:00:21.6]} 46... Rxe4 {[%clk 0:01:11.4]} 47. Rxd3 {[%clk
0:00:23.2]} 47... Rxg4+ {[%clk 0:01:12.3]} 48. Kf2 {[%clk 0:00:24.4]} 48... Rxa4
{[%clk 0:01:12.4]} 49. Kg3 {[%clk 0:00:25.2]} 49... Be5+ {[%clk 0:01:11.5]} 50.
Kf3 {[%clk 0:00:23.2]} 50... g4+ {[%clk 0:01:12.1]} 51. Kg2 {[%clk 0:00:23]}
51... Ra2+ {[%clk 0:01:12.3]} 52. Kg1 {[%clk 0:00:22.5]} 52... g3 {[%clk
0:01:12.3]} 53. Rd8+ {[%clk 0:00:21.8]} 53... Kf7 {[%clk 0:01:12.2]} 54. Rd7+
{[%clk 0:00:22.1]} 54... Ke6 {[%clk 0:01:12.3]} 55. Rd8 {[%clk 0:00:21.9]} 55...
Bd6 {[%clk 0:01:12.8]} 56. Re8+ {[%clk 0:00:21.4]} 56... Kd7 {[%clk 0:01:11.3]}
57. Rg8 {[%clk 0:00:22.8]} 57... a5 {[%clk 0:01:07.7]} 58. Rg7+ {[%clk
0:00:21.9]} 58... Kc6 {[%clk 0:01:08.2]} 59. Rg6 {[%clk 0:00:22.3]} 59... a4
{[%clk 0:01:09.3]} 60. Rg4 {[%clk 0:00:16.7]} 60... a3 {[%clk 0:01:10.1]} 61.
Ra4 {[%clk 0:00:17.5]} 61... Bc5+ {[%clk 0:01:09.8]} 62. Kh1 {[%clk 0:00:15.5]}
62... g2+ {[%clk 0:01:11.7]} 63. Kh2 {[%clk 0:00:16]} 63... g1=Q+ {[%clk
0:01:10.6]} 64. Kh3 {[%clk 0:00:17]} 64... Rh2# {[%clk 0:01:10.8]} 0-1

[Event "*** MasterClass Titled Tuesday Blitz"]
[Site "Chess.com"]
[Date "2017.12.05"]
[Round "1"]
[White "HarutyunianTigranK"]
[Black "Piccadilly123"]
[Result "1-0"]
[WhiteElo "2545"]
[BlackElo "2108"]
[TimeControl "180+2"]
[EndTime "14:25:11 PST"]
[Termination "HarutyunianTigranK won by resignation"]

1. c4 {[%clk 0:03:01.9]} 1... c5 {[%clk 0:03:00.1]} 2. Nc3 {[%clk 0:03:02.3]}
2... Nf6 {[%clk 0:03:01.6]} 3. g3 {[%clk 0:03:02.4]} 3... Nc6 {[%clk 0:03:02.7]}
4. Bg2 {[%clk 0:03:03.1]} 4... g6 {[%clk 0:03:02.5]} 5. Nf3 {[%clk 0:03:04]}
5... Bg7 {[%clk 0:03:03.9]} 6. d4 {[%clk 0:03:05.5]} 6... cxd4 {[%clk
0:03:03.8]} 7. Nxd4 {[%clk 0:03:07.4]} 7... O-O {[%clk 0:03:01.7]} 8. O-O {[%clk
0:03:08.1]} 8... d6 {[%clk 0:03:02.9]} 9. Nxc6 {[%clk 0:03:08.3]} 9... bxc6
{[%clk 0:03:03.3]} 10. Bxc6 {[%clk 0:03:10.2]} 10... Rb8 {[%clk 0:03:04.8]} 11.
Bg2 {[%clk 0:03:09]} 11... Qc7 {[%clk 0:03:03.4]} 12. Qd3 {[%clk 0:02:50.3]}
12... Be6 {[%clk 0:02:59]} 13. b3 {[%clk 0:02:50.8]} 13... Ng4 {[%clk
0:02:50.4]} 14. Bd2 {[%clk 0:02:30.7]} 14... Rfc8 {[%clk 0:02:46.8]} 15. h3
{[%clk 0:02:26.9]} 15... Ne5 {[%clk 0:02:46.9]} 16. Qc2 {[%clk 0:02:25.4]} 16...
a6 {[%clk 0:02:24.8]} 17. Rac1 {[%clk 0:02:25.8]} 17... Nc6 {[%clk 0:02:17.9]}
18. Nd5 {[%clk 0:02:24.5]} 18... Qd8 {[%clk 0:02:16.9]} 19. Qd3 {[%clk
0:02:07.5]} 19... Bd7 {[%clk 0:02:07.1]} 20. Bc3 {[%clk 0:02:03.9]} 20... Ne5
{[%clk 0:01:58.1]} 21. Qd2 {[%clk 0:01:59.3]} 21... e6 {[%clk 0:01:56.9]} 22.
Ne3 {[%clk 0:01:57.8]} 22... Bc6 {[%clk 0:01:57.6]} 23. Rfd1 {[%clk 0:01:50.3]}
23... Bxg2 {[%clk 0:01:51.7]} 24. Kxg2 {[%clk 0:01:52.2]} 24... Rc6 {[%clk
0:01:45.4]} 25. f4 {[%clk 0:01:38.4]} 25... Nd7 {[%clk 0:01:44.4]} 26. Bxg7
{[%clk 0:01:38.9]} 26... Kxg7 {[%clk 0:01:44.8]} 27. Qd4+ {[%clk 0:01:33.2]}
27... Kg8 {[%clk 0:01:45.4]} 28. Ng4 {[%clk 0:01:33.5]} 28... Qf8 {[%clk
0:01:31.6]} 29. e4 {[%clk 0:01:23.4]} 29... Qg7 {[%clk 0:01:27.8]} 30. Qxg7+
{[%clk 0:01:19.4]} 30... Kxg7 {[%clk 0:01:29.7]} 31. Rd2 {[%clk 0:01:19.8]}
31... a5 {[%clk 0:01:29.7]} 32. Rcd1 {[%clk 0:01:20.1]} 32... Rbb6 {[%clk
0:01:25.3]} 33. e5 {[%clk 0:01:15.3]} 33... a4 {[%clk 0:01:21.3]} 34. Rxd6
{[%clk 0:01:16.1]} 34... Rxd6 {[%clk 0:01:21.2]} 35. Rxd6 {[%clk 0:01:15.7]}
35... Rb7 {[%clk 0:01:20.7]} 36. Rd3 {[%clk 0:00:44.3]} 36... Nc5 {[%clk
0:01:19]} 37. Rd8 {[%clk 0:00:44.8]} 37... axb3 {[%clk 0:01:19]} 38. axb3 {[%clk
0:00:43.2]} 38... Ne4 {[%clk 0:00:56.8]} 39. Nf6 {[%clk 0:00:40]} 39... Nxf6
{[%clk 0:00:53.1]} 40. exf6+ {[%clk 0:00:41.9]} 40... Kxf6 {[%clk 0:00:54.6]}
41. Rd3 {[%clk 0:00:43.7]} 41... e5 {[%clk 0:00:53.2]} 42. Kf3 {[%clk
0:00:42.3]} 42... Ke6 {[%clk 0:00:51.5]} 43. fxe5 {[%clk 0:00:42.9]} 43... Kxe5
{[%clk 0:00:53.4]} 44. c5 {[%clk 0:00:34.3]} 44... f5 {[%clk 0:00:53]} 45. c6
{[%clk 0:00:22.5]} 45... Rc7 {[%clk 0:00:51.1]} 46. Rc3 {[%clk 0:00:23.4]} 46...
Kd4 {[%clk 0:00:45.9]} 47. Rc1 {[%clk 0:00:22.7]} 47... Kd5 {[%clk 0:00:46.8]}
48. Kf4 {[%clk 0:00:23.7]} 48... h6 {[%clk 0:00:44.6]} 49. h4 {[%clk 0:00:24.2]}
49... Ke6 {[%clk 0:00:37.5]} 50. b4 {[%clk 0:00:24]} 50... Kf6 {[%clk
0:00:36.4]} 51. b5 {[%clk 0:00:24]} 51... g5+ {[%clk 0:00:38.3]} 52. hxg5+
{[%clk 0:00:24.5]} 52... hxg5+ {[%clk 0:00:40.2]} 53. Kf3 {[%clk 0:00:25.9]}
53... Rc8 {[%clk 0:00:40.3]} 54. c7 {[%clk 0:00:25.8]} 54... Ke6 {[%clk
0:00:40.7]} 55. b6 {[%clk 0:00:26.7]} 55... Kd7 {[%clk 0:00:41.9]} 56. b7 {[%clk
0:00:24.1]} 56... Rxc7 {[%clk 0:00:43.1]} 57. Rd1+ {[%clk 0:00:23]} 57... Ke6
{[%clk 0:00:33.3]} 58. b8=Q {[%clk 0:00:23.6]} 58... Rc3+ {[%clk 0:00:35.2]} 59.
Kg2 {[%clk 0:00:23.9]} 59... Rc2+ {[%clk 0:00:36.4]} 60. Kg1 {[%clk 0:00:24.8]}
60... Rc6 {[%clk 0:00:34.2]} 61. Qe8+ {[%clk 0:00:24.6]} 1-0

[Event "*** MasterClass Titled Tuesday Blitz"]
[Site "Chess.com"]
[Date "2017.12.05"]
[Round "1"]
[White "MateusViageiro"]
[Black "Indianlad"]
[Result "0-1"]
[WhiteElo "2176"]
[BlackElo "2590"]
[TimeControl "180+2"]
[EndTime "14:25:24 PST"]
[Termination "Indianlad won by resignation"]

1. e4 {[%clk 0:02:08.1]} 1... e5 {[%clk 0:03:00]} 2. Nf3 {[%clk 0:02:06.9]} 2...
Nc6 {[%clk 0:03:01.5]} 3. Bb5 {[%clk 0:02:07.5]} 3... a6 {[%clk 0:03:02.1]} 4.
Ba4 {[%clk 0:02:08.3]} 4... d6 {[%clk 0:03:03.5]} 5. c3 {[%clk 0:02:08.2]} 5...
Bd7 {[%clk 0:03:02.5]} 6. O-O {[%clk 0:02:08.3]} 6... g6 {[%clk 0:03:03.6]} 7.
d4 {[%clk 0:02:07.8]} 7... Bg7 {[%clk 0:03:05.1]} 8. Re1 {[%clk 0:02:08.5]} 8...
h6 {[%clk 0:03:01.9]} 9. Be3 {[%clk 0:02:04.7]} 9... Nf6 {[%clk 0:02:59.4]} 10.
Nbd2 {[%clk 0:02:04.5]} 10... Ng4 {[%clk 0:03:00.2]} 11. dxe5 {[%clk 0:02:02.3]}
11... Nxe3 {[%clk 0:02:55]} 12. Rxe3 {[%clk 0:02:00.6]} 12... dxe5 {[%clk
0:02:54.4]} 13. Rd3 {[%clk 0:02:01.2]} 13... Qe7 {[%clk 0:02:48.6]} 14. Nf1
{[%clk 0:01:58.2]} 14... b5 {[%clk 0:02:41.9]} 15. Bb3 {[%clk 0:01:58.6]} 15...
Na5 {[%clk 0:02:42.7]} 16. Ne3 {[%clk 0:01:56.6]} 16... c6 {[%clk 0:02:42.7]}
17. Bc2 {[%clk 0:01:55.2]} 17... Be6 {[%clk 0:02:43.1]} 18. Rd2 {[%clk
0:01:41.1]} 18... O-O {[%clk 0:02:41.2]} 19. Qe2 {[%clk 0:01:40.9]} 19... h5
{[%clk 0:02:31.1]} 20. h3 {[%clk 0:01:39.1]} 20... Rab8 {[%clk 0:02:30.1]} 21.
b4 {[%clk 0:01:35.9]} 21... Nc4 {[%clk 0:02:28.8]} 22. Nxc4 {[%clk 0:01:33.3]}
22... Bxc4 {[%clk 0:02:28]} 23. Bd3 {[%clk 0:01:34.3]} 23... Be6 {[%clk
0:02:22.7]} 24. a3 {[%clk 0:01:32.3]} 24... Rfc8 {[%clk 0:02:19.2]} 25. Rad1
{[%clk 0:01:29.6]} 25... c5 {[%clk 0:02:19.7]} 26. Bb1 {[%clk 0:01:30.5]} 26...
cxb4 {[%clk 0:02:18.6]} 27. cxb4 {[%clk 0:01:30.8]} 27... Rc3 {[%clk 0:02:19.8]}
28. Rd3 {[%clk 0:01:11.9]} 28... Bc4 {[%clk 0:02:05.2]} 29. Qd2 {[%clk
0:01:12.9]} 29... Rxd3 {[%clk 0:01:57]} 30. Bxd3 {[%clk 0:01:13.1]} 30... Rd8
{[%clk 0:01:58.5]} 31. Qc3 {[%clk 0:01:07.8]} 31... Be6 {[%clk 0:01:55.5]} 32.
Be2 {[%clk 0:01:04]} 32... Rxd1+ {[%clk 0:01:56]} 33. Bxd1 {[%clk 0:01:04.5]}
33... f5 {[%clk 0:01:57.4]} 34. Bc2 {[%clk 0:00:54.5]} 34... Bf7 {[%clk
0:01:25.4]} 35. Qc8+ {[%clk 0:00:45.3]} 35... Qe8 {[%clk 0:01:09.9]} 36. Qxe8+
{[%clk 0:00:37.2]} 36... Bxe8 {[%clk 0:01:10.3]} 37. exf5 {[%clk 0:00:38.3]}
37... gxf5 {[%clk 0:01:09.7]} 38. Bxf5 {[%clk 0:00:38.6]} 38... Bh6 {[%clk
0:00:43.7]} 39. Nxe5 {[%clk 0:00:35]} 39... Bc1 {[%clk 0:00:44.8]} 40. Bc8
{[%clk 0:00:35.3]} 40... Bxa3 {[%clk 0:00:44.8]} 41. Bxa6 {[%clk 0:00:30.4]}
41... Bxb4 {[%clk 0:00:46.3]} 42. g4 {[%clk 0:00:27.7]} 42... Bd6 {[%clk
0:00:46.2]} 43. Nd3 {[%clk 0:00:23.1]} 43... Kf7 {[%clk 0:00:39.4]} 44. gxh5
{[%clk 0:00:21.9]} 44... Kf6 {[%clk 0:00:40.6]} 45. Kg2 {[%clk 0:00:20.4]} 45...
Kg5 {[%clk 0:00:40.6]} 46. f3 {[%clk 0:00:20.9]} 46... Kxh5 {[%clk 0:00:41.6]}
47. Nf2 {[%clk 0:00:20.7]} 47... Bc6 {[%clk 0:00:37.1]} 48. Ne4 {[%clk
0:00:21.6]} 48... Be5 {[%clk 0:00:38.5]} 49. Ng3+ {[%clk 0:00:21.3]} 49... Kg5
{[%clk 0:00:38.4]} 50. Ne4+ {[%clk 0:00:21.9]} 50... Kf4 {[%clk 0:00:38.9]} 51.
h4 {[%clk 0:00:20]} 51... Ke3 {[%clk 0:00:39.5]} 52. h5 {[%clk 0:00:20.6]} 52...
Kd4 {[%clk 0:00:40]} 53. h6 {[%clk 0:00:21.5]} 53... b4 {[%clk 0:00:41.4]} 54.
Nd2 {[%clk 0:00:21.2]} 54... Kc3 {[%clk 0:00:42.2]} 55. Ne4+ {[%clk 0:00:21.9]}
55... Bxe4 {[%clk 0:00:41.1]} 56. fxe4 {[%clk 0:00:22.6]} 56... b3 {[%clk
0:00:42.5]} 57. h7 {[%clk 0:00:17.1]} 57... b2 {[%clk 0:00:42.8]} 58. h8=Q
{[%clk 0:00:17]} 58... Bxh8 {[%clk 0:00:42.8]} 59. e5 {[%clk 0:00:15.2]} 0-1

[Event "*** MasterClass Titled Tuesday Blitz"]
[Site "Chess.com"]
[Date "2017.12.05"]
[Round "1"]
[White "kanachess88"]
[Black "ChessWarrior7197"]
[Result "1/2-1/2"]
[WhiteElo "2270"]
[BlackElo "2654"]
[TimeControl "180+2"]
[EndTime "14:26:20 PST"]
[Termination "Game drawn - insufficient material"]

1. e4 {[%clk 0:03:00.9]} 1... e5 {[%clk 0:03:00.5]} 2. Nf3 {[%clk 0:03:00.1]}
2... Nc6 {[%clk 0:03:01.6]} 3. Bb5 {[%clk 0:03:00.2]} 3... a6 {[%clk 0:03:01.7]}
4. Bxc6 {[%clk 0:02:59.7]} 4... dxc6 {[%clk 0:03:02]} 5. d3 {[%clk 0:03:00.5]}
5... f6 {[%clk 0:03:00.8]} 6. Nbd2 {[%clk 0:02:59.5]} 6... c5 {[%clk 0:02:59.2]}
7. Nf1 {[%clk 0:02:59.2]} 7... Ne7 {[%clk 0:02:59.7]} 8. Ng3 {[%clk 0:03:00.2]}
8... Nc6 {[%clk 0:03:00.6]} 9. h3 {[%clk 0:02:58.3]} 9... Be6 {[%clk 0:03:01.2]}
10. O-O {[%clk 0:02:59]} 10... Qd7 {[%clk 0:03:01.7]} 11. Qe2 {[%clk 0:02:52.2]}
11... Be7 {[%clk 0:03:00.8]} 12. Be3 {[%clk 0:02:52.4]} 12... O-O {[%clk
0:03:01.2]} 13. c3 {[%clk 0:02:51.8]} 13... Rad8 {[%clk 0:02:59.7]} 14. Rfd1
{[%clk 0:02:52.9]} 14... b6 {[%clk 0:02:59.6]} 15. d4 {[%clk 0:02:42.5]} 15...
cxd4 {[%clk 0:02:59.8]} 16. cxd4 {[%clk 0:02:43.9]} 16... Nxd4 {[%clk
0:03:00.5]} 17. Nxd4 {[%clk 0:02:44.8]} 17... exd4 {[%clk 0:03:02.4]} 18. Rxd4
{[%clk 0:02:46.1]} 18... Qb5 {[%clk 0:03:03.2]} 19. Qxb5 {[%clk 0:02:41.6]}
19... axb5 {[%clk 0:03:05.1]} 20. Rad1 {[%clk 0:02:14.7]} 20... Rxd4 {[%clk
0:03:03.4]} 21. Rxd4 {[%clk 0:02:15.3]} 21... g6 {[%clk 0:03:02.7]} 22. a3
{[%clk 0:02:13.5]} 22... Bd6 {[%clk 0:02:49.2]} 23. Ne2 {[%clk 0:02:10.5]} 23...
Kf7 {[%clk 0:02:47.7]} 24. f4 {[%clk 0:02:10.4]} 24... Bc5 {[%clk 0:02:40.2]}
25. Rd3 {[%clk 0:02:11.2]} 25... Bc4 {[%clk 0:02:39.2]} 26. Bxc5 {[%clk
0:02:10.2]} 26... bxc5 {[%clk 0:02:36.8]} 27. Rd2 {[%clk 0:02:10.9]} 27... Bxe2
{[%clk 0:02:31.3]} 28. Rxe2 {[%clk 0:02:12]} 28... Rd8 {[%clk 0:02:32.9]} 29.
Kf2 {[%clk 0:02:11.7]} 29... Rd3 {[%clk 0:02:30.6]} 30. Re3 {[%clk 0:02:10.9]}
30... Rd4 {[%clk 0:02:28.4]} 31. Kf3 {[%clk 0:02:04.2]} 31... c6 {[%clk
0:02:27.4]} 32. Rc3 {[%clk 0:02:00.2]} 32... c4 {[%clk 0:02:25.3]} 33. Ke3
{[%clk 0:01:56.2]} 33... Rd1 {[%clk 0:02:17.1]} 34. b3 {[%clk 0:01:56.5]} 34...
cxb3 {[%clk 0:02:17.7]} 35. Rxb3 {[%clk 0:01:57.8]} 35... Ke6 {[%clk 0:02:14.4]}
36. Rc3 {[%clk 0:01:51.3]} 36... Kd6 {[%clk 0:02:14.8]} 37. Rd3+ {[%clk
0:01:43.2]} 37... Rxd3+ {[%clk 0:02:15]} 38. Kxd3 {[%clk 0:01:44.6]} 38... c5
{[%clk 0:02:05.7]} 39. Kc3 {[%clk 0:01:44.3]} 39... h6 {[%clk 0:01:41.6]} 40.
Kd3 {[%clk 0:01:30.5]} 40... g5 {[%clk 0:01:42.4]} 41. g3 {[%clk 0:01:31.2]}
41... h5 {[%clk 0:01:23]} 42. h4 {[%clk 0:01:31.7]} 42... g4 {[%clk 0:01:18.8]}
43. Kc3 {[%clk 0:01:29.4]} 43... Kc6 {[%clk 0:01:10.8]} 44. Kd3 {[%clk
0:01:28.7]} 44... c4+ {[%clk 0:01:01.5]} 45. Kd4 {[%clk 0:01:15.2]} 45... Kd6
{[%clk 0:00:54.3]} 46. a4 {[%clk 0:00:30.9]} 46... bxa4 {[%clk 0:00:54.5]} 47.
Kxc4 {[%clk 0:00:32.4]} 47... a3 {[%clk 0:00:54]} 48. Kb3 {[%clk 0:00:33.5]}
48... Kc5 {[%clk 0:00:54.1]} 49. Kxa3 {[%clk 0:00:29.1]} 49... Kd4 {[%clk
0:00:55.4]} 50. e5 {[%clk 0:00:27.2]} 50... fxe5 {[%clk 0:00:56.4]} 51. f5
{[%clk 0:00:28.2]} 51... e4 {[%clk 0:00:56.4]} 52. f6 {[%clk 0:00:29.5]} 52...
e3 {[%clk 0:00:57.2]} 53. f7 {[%clk 0:00:31]} 53... e2 {[%clk 0:00:58.1]} 54.
f8=Q {[%clk 0:00:32.3]} 54... e1=Q {[%clk 0:00:59.2]} 55. Qd6+ {[%clk
0:00:32.6]} 55... Ke3 {[%clk 0:00:56]} 56. Qe5+ {[%clk 0:00:28.6]} 56... Kf2
{[%clk 0:00:56.8]} 57. Qxh5 {[%clk 0:00:29.9]} 57... Kxg3 {[%clk 0:00:57.8]} 58.
Qg5 {[%clk 0:00:28.8]} 58... Qc3+ {[%clk 0:00:42.7]} 59. Ka2 {[%clk 0:00:30]}
59... Qc4+ {[%clk 0:00:42.9]} 60. Kb2 {[%clk 0:00:30.7]} 60... Qe2+ {[%clk
0:00:42.7]} 61. Kb3 {[%clk 0:00:31.4]} 61... Qd3+ {[%clk 0:00:42.7]} 62. Kb2
{[%clk 0:00:31.9]} 62... Qd4+ {[%clk 0:00:43]} 63. Kb3 {[%clk 0:00:31.6]} 63...
Qf4 {[%clk 0:00:36.9]} 64. Qd8 {[%clk 0:00:30.5]} 64... Qf3+ {[%clk 0:00:35.3]}
65. Kc2 {[%clk 0:00:25.2]} 65... Kh3 {[%clk 0:00:33.8]} 66. h5 {[%clk
0:00:21.6]} 66... Qf5+ {[%clk 0:00:34.6]} 67. Qd3+ {[%clk 0:00:21.4]} 67...
Qxd3+ {[%clk 0:00:23.9]} 68. Kxd3 {[%clk 0:00:22.7]} 68... g3 {[%clk 0:00:21.7]}
69. h6 {[%clk 0:00:24.1]} 69... g2 {[%clk 0:00:22.3]} 70. h7 {[%clk 0:00:25.7]}
70... g1=Q {[%clk 0:00:23.5]} 71. h8=Q+ {[%clk 0:00:27.1]} 71... Kg2 {[%clk
0:00:24.4]} 72. Qg7+ {[%clk 0:00:28.2]} 72... Kh1 {[%clk 0:00:25.3]} 73. Qxg1+
{[%clk 0:00:29.1]} 73... Kxg1 {[%clk 0:00:24.6]} 1/2-1/2